Cogmind - Beta 16 @@@ ROGUE MODE // 2025.10.23 @ 09:14:35 Player: Darcyisverycute Result: Destroyed by S-10 Pest with Light Assault Rifle Performance ------------- Evolutions (0) 0 Regions Visited (2) 400 Robots Destroyed (45) 225 Value Destroyed (842) 842 Prototype IDs (0) 0 Alien Tech Used (0) 0 Bonus (0) 0 TOTAL SCORE: 1467 Bonus ------- None Cogmind --------- Core Integrity 0/250 Matter 300/300 Energy 310/310 System Corruption 1% Temperature Cool (84) Movement Rolling (190) Ox6 Location -10/Mines Parts ------- > --- POWER (1) -------- Fission Core > --- PROPULSION (2) --- Aluminum Leg Compact Wheel > --- UTILITY (2) ------ Cooling System Huge Storage Unit > --- WEAPON (2) ------- Particle Cannon Particle Cannon > --- INVENTORY (25) --- Ion Engine Light Ion Engine Light Nuclear Core Compact Wheel Cooling System Cooling System Cooling System Large Storage Unit Medium Matter Pod (100) Structural Scanner Sensor Array Signal Interpreter Improved Terrain Scanner Targeting Computer Light Armor Plating Light Armor Plating Light Armor Plating Light Armor Plating Light Armor Plating Particle Cannon Particle Cannon Light Assault Rifle Light Assault Rifle Mining Laser Peak State ------------ > --- POWER ------------ Fission Core > --- PROPULSION ------- Aluminum Leg Compact Wheel > --- UTILITY ---------- Cooling System Huge Storage Unit > --- WEAPON ----------- Particle Cannon Particle Cannon > --- INVENTORY -------- Ion Engine Light Ion Engine Light Nuclear Core Compact Wheel Cooling System Cooling System Cooling System Large Storage Unit Medium Matter Pod Structural Scanner Sensor Array Signal Interpreter Improved Terrain Scanner Targeting Computer Light Armor Plating Light Armor Plating Light Armor Plating Light Armor Plating Light Armor Plating Particle Cannon Particle Cannon Light Assault Rifle Light Assault Rifle Mining Laser [Rating: 17] Favorites ----------- Power Ion Engine Engine Ion Engine Power Core Fission Core Propulsion Light Treads Treads Light Treads Leg Aluminum Leg Wheel Compact Wheel Utility Huge Storage Unit Device Heat Sink Storage Huge Storage Unit Protection Light Armor Plating Weapon Particle Cannon Energy Gun EM Pulse Gun Energy Cannon Particle Cannon Ballistic Gun Light Assault Rifle Build | -11 -10 -10 ------- Run | Yrd Mat Min Slots Evolved . | . . . Power . | . . . Propulsion . | . . . Utility . | . . . Weapon . | . . . Parts Attached 24 | 8 13 3 Power 3 | 1 1 1 Engine 2 | 1 1 . Core 1 | . . 1 Reactor . | . . . Propulsion 6 | 2 3 1 Treads 3 | 2 1 . Leg 2 | . 2 . Wheel 1 | . . 1 Hover . | . . . Flight . | . . . Utility 7 | 2 4 1 Device 3 | 1 1 1 Storage 2 | 1 1 . Processor . | . . . Hackware . | . . . Protection 2 | . 2 . Artifact . | . . . Weapon 8 | 3 5 . Energy Gun 5 | 2 3 . Energy Cannon 2 | . 2 . Ballistic Gun 1 | 1 . . Ballistic Cannon . | . . . Launcher . | . . . Special Weapon . | . . . Impact Weapon . | . . . Slashing Weapon . | . . . Piercing Weapon . | . . . Special Melee Weapon . | . . . Unidentified Prototypes . | . . . Parts Lost 6 | . 4 2 Power 1 | . 1 . Propulsion 3 | . 1 2 Utility . | . . . Weapon 2 | . 2 . Highest Loss Streak 1 | . 1 1 To Critical Strikes . | . . . Average Backups 12 | 2 12 22 Power . | . . 1 Propulsion . | . . 1 Utility 8 | . 8 15 Weapon 2 | 1 2 4 Tool/Special . | . . . Unused Backups 22 | . 3 19 Power 2 | . . 2 Propulsion 1 | . . 1 Utility 14 | . 3 11 Weapon 5 | . . 5 Tool/Special . | . . . Average Slot Usage (%) 96 | . 96 99 Engine 12 | . 12 12 Treads 24 | . 26 15 Leg 2 | . 1 10 Device 5 | . 3 13 Storage 14 | . 14 14 Protection 8 | . 10 . Energy Gun 11 | . 13 . Energy Cannon 14 | . 12 28 Peak Build Rating 17 | 9 12 17 Average Rating 9 | 6 9 13 On Entrance 7 | . 9 12 Avg Prop Armor Cover (%) 7 | . 6 7 Naked Turns . | . . . Heaviest Build 100 | 12 96 100 Greatest Support 40 | 40 40 40 Greatest Overweight (x) 6 | . 4 6 Average Overweight (x) 1 | . 1 3 Largest Inventory Capacity 25 | 8 25 25 Average Capacity 18 | 6 20 25 Most Carried 24 | 3 20 24 Average Carried 12 | 2 12 22 Final Capacity 25 | 8 25 25 Final Carried 24 | 3 20 24 Class Distribution -------------------- 100% | Mutant Dominant Class ---------------- Mutant | -10/Materials Mutant | -10/Mines Resources | -11 -10 -10 ----------- Run | Yrd Mat Min Matter Collected 638 | 319 184 135 Remotely . | . . . Salvage Created 1340 | 256 655 429 Parts 95 | 22 43 30 Haulers Intercepted 1 | . 1 . Recyclers Shooed . | . . . Parts Field Recycled . | . . . Retrieved Matter . | . . . Parts Self-Destructed . | . . . Prevented . | . . . Parts Restored . | . . . Kills | -11 -10 -10 ------- Run | Yrd Mat Min Combat Hostiles Destroyed 26 | . 15 11 Guns 9 | . 9 . Cannons 12 | . 1 11 AOE 4 | . 4 . Classes Destroyed 10 | 3 5 2 Worker 3 | 2 1 . Tunneler 8 | 8 . . Hauler 1 | . 1 . Recycler 4 | 1 . 3 Operator 2 | . 2 . Watcher 2 | . 2 . Swarmer 11 | . 3 8 Grunt 12 | . 12 . Demolisher 2 | . . 2 Assembled 1 | . . 1 Best Kill Streak 5 | 2 4 5 Combat Bots Only 3 | . 3 3 Max Kills in Single Turn 4 | 1 4 2 Gunslinging . | . . . Exploded 3 | . 3 . Melee . | . . . Uniques/NPCs Destroyed . | . . . Combat | -11 -10 -10 -------- Run | Yrd Mat Min Hostile Shots Fired 123 | . 60 63 Missed 23 | . 16 7 Hits 100 | . 44 56 Projectile 100 | . 44 56 AOE 3 | . 1 2 Damage Taken 1205 | . 650 555 Core 258 | . 101 157 Absorbed by Shields . | . . . Core Remaining (%) 100 | 100 . . Volleys Fired 123 | 39 58 26 Largest 2 | 2 2 2 Hottest 136 | 70 136 136 Shots Fired 242 | 78 111 53 Gun 177 | 78 99 . Cannon 65 | . 12 53 Launcher . | . . . Special . | . . . Kinetic 39 | 39 . . Thermal 107 | 29 25 53 Explosive . | . . . Electromagnetic 96 | 10 86 . Robot Hit Streak 15 | 6 15 3 Robot Miss Streak 5 | 2 5 5 Penetration Max . | . . . Secondary Targets 2 | . 2 . Max Gunslinging Chain 1 | . 1 . Shots Hit Robots 138 | 43 73 22 Core Hits 62 | 15 31 16 Critical Kills . | . . . Critical Parts Destroyed . | . . . Critical Strikes 1 | 1 . . Burn 1 | 1 . . Melee Attacks . | . . . Impact . | . . . Slashing . | . . . Piercing . | . . . Sneak Attacks . | . . . Combat Hostiles . | . . . Follow-up Attacks . | . . . Damage Inflicted 2578 | 446 1621 511 Guns 1317 | 446 871 . Cannons 645 | . 134 511 Explosions 584 | . 584 . Melee . | . . . Ramming 32 | . 32 . Kinetic 157 | 157 . . Thermal 1256 | 210 535 511 Explosive 293 | . 293 . Electromagnetic 840 | 79 761 . Impact . | . . . Slashing . | . . . Piercing . | . . . Highest Corruption 1 | . 1 1 Average Corruption 1 | . 1 1 Corruption Purged . | . . . Corruption Blocked . | . . . Effects 17 | . 15 2 Message Errors 6 | . 6 . Matter Fused 1 | . 1 . Heat Flow Errors 2 | . 1 1 Energy Discharges 4 | . 4 . Data Loss (minor) 2 | . 2 . Misfires 2 | . 1 1 Overload Shots . | . . . Overflow Damage 2 | . . 2 Projectiles 2 | . . 2 Explosions . | . . . Melee . | . . . Knockbacks . | . . . Impact . | . . . Kinetic . | . . . Secondary . | . . . Self-Inflicted Damage 70 | . 70 . Shots 3 | . 3 . Rammed 3 | . 3 . Targets Rammed 3 | . 3 . Kicked . | . . . Crushed . | . . . Highest Temperature 415 | 140 303 415 Average Temperature 69 | 36 75 94 Received Heat Transfer 237 | . 237 . Effects 1 | . . 1 Shutdowns 1 | . . 1 Siege Activations . | . . . Martial Activations . | . . . Shielding Activations . | . . . Robots Disrupted . | . . . Combat Hostiles . | . . . Robots Corrupted 1 | . 1 . Combat Hostiles 1 | . 1 . Parts Fried 5 | . 5 . Impact Corruptions . | . . . Robots Melted . | . . . Combat Hostiles . | . . . Parts Melted 1 | . . 1 Heat Transferred 2500 | 703 872 925 Parts Sabotaged . | . . . Parts Stolen . | . . . Parts Stripped . | . . . Power Chain Reactions 5 | . 5 . Alert | -11 -10 -10 ------- Run | Yrd Mat Min Maximum Alert Level . | . . . Low Security (%) 100 | 100 100 100 Level 1 . | . . . Level 2 . | . . . Level 3 . | . . . Level 4 . | . . . Level 5 . | . . . High Security . | . . . Max Security . | . . . Peak Influence 122 | 10 122 101 Initial 1 | . . 1 Average 28 | 1 31 41 Influence Increases 832 | 55 522 255 Destroy 0b10 Robot/C 500 | . 300 200 Destroy 0b10 Robot/NC 100 | 55 30 15 Destroy Leader 116 | . 76 40 Successful Hack 13 | . 13 . Disable Machine 45 | . 45 . Destroy Structure 43 | . 43 . Lose Combat Pursuer 15 | . 15 . Influence Decreases 772 | 55 516 201 Entered New Map 5 | . . 5 Time Decay 717 | 55 486 176 Lost Part 50 | . 30 20 Squads Dispatched 3 | . 3 . Investigation 1 | . 1 . Extermination . | . . . Reinforcement 2 | . 2 . Assault . | . . . Garrison . | . . . Intercept . | . . . Searches Triggered . | . . . Construction Impeded . | . . . Haulers Reinforced . | . . . Active Scanning Responses . | . . . Cargo Convoy Interrupts . | . . . Stealth | -11 -10 -10 --------- Run | Yrd Mat Min Distress Signals 4 | . 4 . Communications Jammed . | . . . Distress Signals . | . . . Times Spotted 40 | . 27 13 Peak Tracking Total 5 | . 5 3 Tactical Retreats 1 | . 1 . Traps | -11 -10 -10 ------- Run | Yrd Mat Min Traps Triggered 1 | . 1 . Indirectly . | . . . Trap Hack Attempts . | . . . Triggered . | . . . Disarmed . | . . . Reprogrammed . | . . . Reused . | . . . Traps Extracted . | . . . Installed . | . . . Triggered . | . . . Machines | -11 -10 -10 ---------- Run | Yrd Mat Min Machines Disabled 3 | . 3 . Max in Single Turn 1 | . 1 . Machines Repaired . | . . . Machines Dismantled . | . . . Machines Sabotaged . | . . . Overloaded Fab Kills . | . . . Hacking | -11 -10 -10 --------- Run | Yrd Mat Min Machines Accessed 6 | . 6 . Terminals 6 | . 6 . Fabricators . | . . . Repair Stations . | . . . Recycling Units . | . . . Scanalyzers . | . . . Garrison Access . | . . . Total Hacks 23 | . 23 . Successful 12 | . 12 . Failed 11 | . 11 . Catastrophic . | . . . Database Lockouts . | . . . Manual 18 | . 18 . Terminals 23 | . 23 . Fabricators . | . . . Repair Stations . | . . . Recycling Units . | . . . Scanalyzers . | . . . Garrison Access . | . . . Terminal Hacks 4 | . 4 . Robot Analysis 3 | . 3 . Locate Traps 1 | . 1 . Fabricator Hacks . | . . . Repair Station Hacks . | . . . Recycling Unit Hacks . | . . . Scanalyzer . | . . . Garrison Access Hacks . | . . . Unauthorized Hacks 8 | . 8 . Terminals 8 | . 8 . Botnet 4 | . 4 . Skim 4 | . 4 . Fabricators . | . . . Repair Stations . | . . . Recycling Units . | . . . Scanalyzers . | . . . Garrison Access . | . . . Data Cores Recovered . | . . . Used . | . . . Hacking Detections 6 | . 6 . Full Trace Events . | . . . Feedback Events . | . . . Feedback Blocked . | . . . Robot Schematics Acquired . | . . . Robots Built . | . . . Authchips . | . . . Time . | . . . Total Robot Build Rating . | . . . Part Schematics Acquired . | . . . Parts Built . | . . . Authchips . | . . . Time . | . . . Total Part Build Rating . | . . . Part Studies Acquired . | . . . Parts Repaired . | . . . Time . | . . . Parts Recycled . | . . . Recycled Matter . | . . . Retrieved Matter . | . . . Retrieved Components . | . . . Parts Scanalyzed . | . . . Part Schematics Acquired . | . . . Parts Damaged . | . . . Bothacking | -11 -10 -10 ------------ Run | Yrd Mat Min Used RIF Installer . | . . . Robots Hacked . | . . . Non-combat . | . . . Combat . | . . . Robot Hacks Applied . | . . . Relay Couplers Released . | . . . Fabnet Peak Effective % . | . . . Robots Rewired . | . . . Allies Hacked . | . . . Hacks Repelled . | . . . Allies | -11 -10 -10 -------- Run | Yrd Mat Min Total Allies . | . . . Largest Group . | . . . Highest-Rated Group . | . . . Highest-Rated Ally . | . . . Total Orders . | . . . Ally Attacks . | . . . Total Damage . | . . . Kills . | . . . Allies Corrupted . | . . . Allies Melted . | . . . Intel | -11 -10 -10 ------- Run | Yrd Mat Min Active Infowar (turns) 330 | 268 62 . Terrain 330 | 268 62 . Robot Analysis Total 3 | . 3 . Derelict Logs Recovered . | . . . Drone Launches . | . . . Drone Recoveries . | . . . Exploration | -11 -10 -10 ------------- Run | Yrd Mat Min Turns Passed 2987 | 503 2096 388 Spaces Moved 1034 | 240 719 75 Core 6 | 6 . . Treads 1013 | 234 719 60 Legs . | . . . Wheels 15 | . . 15 Hover . | . . . Flight . | . . . Fastest Speed 50 | 50 160 175 Average Speed 242 | 157 255 390 Slowest Speed 480 | 160 480 480 Overloaded Moves . | . . . Propulsion Burnouts . | . . . Robots Hopped . | . . . Potential Cave-ins . | . . . Cave-ins Triggered . | . . . Exploration Rate (%) 44 | 15 97 22 Regions Visited 2 Branch Regions 1 Pre-discovered Areas . | . . . Known Exits Taken . | . . . Unknown Exits Taken 2 | 1 1 . Scrap Searched . | . . . Spaces Dug . | . . . Terrain Destroyed 41 | . 41 . Melee . | . . . Projectile . | . . . AOE 41 | . 41 . Terrain Rammed . | . . . Walls Destroyed . | . . . Machines Disabled . | . . . Actions | -11 -10 -10 --------- Run | Yrd Mat Min Total 1272 | 292 863 117 Wait 46 | 3 36 7 Move 1032 | 239 718 75 Hop . | . . . Pick Up 29 | 2 22 5 Fast Attach 14 | 8 6 . Attach 3 | . 1 2 Detach 3 | 1 2 . Swap 9 | . 7 2 Drop 10 | . 10 . Fire 123 | 39 58 26 Melee . | . . . Ram . | . . . Kick . | . . . Crush 3 | . 3 . Escape Stasis . | . . . Rewire . | . . . Trap . | . . . Miscellaneous . | . . . Route ------- -11/Scrapyard -10/Materials (discovered 6 exits: [*Mat x3] / [*Min x2] / [*Sub]) -10/Mines History --------- Turn | Location | Event 2 | -11/Scrapyard | Met Revision 17 43 | -11/Scrapyard | Discovered new exit (range 16) 504 | -11/Scrapyard | Entered Materials 505 | -10/Materials | Build established: Mutant 667 | -10/Materials | Discovered new exit (range 16) 1104 | -10/Materials | Derelicts attacked the area 1152 | -10/Materials | Discovered new exit (range 15) 1557 | -10/Materials | Discovered new exit (range 3) 1761 | -10/Materials | Discovered new exit (range 5) 1936 | -10/Materials | Discovered new exit (range 8) 2344 | -10/Materials | Discovered new exit (range 4) 2600 | -10/Materials | Entered Mines 2619 | -10/Mines | Core integrity fell below 50% 2918 | -10/Mines | Assembled infested the area 2923 | -10/Mines | Assisted by a Guerilla fighting off Assembled 2977 | -10/Mines | Core integrity fell below 20% 2988 | -10/Mines | Destroyed by S-10 Pest with Light Assault Rifle Last Messages --------------- 02938_ D-53 Grenadier destroyed. 02942_ The unstable cave ceiling collapses. 02947_ Acquired 10 matter. 02951_ The unstable cave ceiling collapses. 02955_ System corrupted: FCS attempts to trigger Particle Cannon. 02955_ System corrupted: Particle Cannon misfires. 02965_ U-05 Engineer lays Concrete. 02970_ U-05 Engineer builds a Wall. 02970_ Acquired 10 matter. 02970_ U-05 Engineer lays Concrete. 02974_ S-10 Pest destroyed. 02974_ U-05 Engineer lays Concrete. 02980_ S-10 Pest destroyed. 02981_ U-05 Engineer lays Concrete. 02985_ U-05 Engineer builds a Wall. 02985_ U-05 Engineer lays Concrete. 02986_ as-48698 destroyed. 02986_ U-05 Engineer lays Concrete. Map ----- +----------------------------------------------------+ | ???????????????????????????? ????????????????????? | | ########??###????##???##?? ????????????????????? | | #??# ???# ?? ### ???????????????????? | | """ #??# #??? ?? ???????????????????? | | [ """ #??# #??? ### ??????????????????? | | """ #??# #??? ??????????????????? | | = #??# #??? ??????????????????? | | #######??# #???# ???????????????????? | | ########## ##### #?????????????????????? | | %% *! #??????????????????????? | | ######### %*! #??????????????????????? | | ????????# ####### #???????????????????????? | | ????????# ?????# ###???????????????????????? | | ???????? ???## ##?????????????????????????? | | ??????? ??# ##??????????????????????????? | | ??????# ??# ##???????????????????????????? | | ??????# ##?# ##????????????????????????????? | | ??????## ##??## #?????????????????????????????? | | ???????###????# #?????????????????????????????? | | ??????????????# ##?????????????????????????????? | | ??????????????### #??????????????????????????????? | | ????????????????# #????######????????????????????? | | ????????????????# ###??# ?????????????????????? | | ????????????????# #??# ??????????????????????? | | ????????????????### #?## a#??????????????????????? | | ??????????????????# #?# @###????????????????????? | | ??????????????????# #?# =%! #????????????????????? | | ??????????????????# #?# =[%##????????????????????? | | ??????????????????# ### !*% #????????????????????? | | ??????????????????# !=%!####??????????????????? | | ??????????????????#### %!!* #??????????????????? | | ?????????????????????##*=* ##?????????????????? | | ?????????????????????## ! #?????????????????? | | ?????????????????????# u ###?????????????????? | | ?????????????????????## = #??????????????????? | | ??????????????????????# =%su #??????????????????? | | ??????????????????????# [=*###??????????????????? | | ?????????????????????# =%# #???????????????????? | | ??????????????????? [###???????????????????? | | ?????????????????# #?????????????????????? | | ?????????????????# #?????????????????????? | | ?????????????????# ?????????????????????? | | ?????????????????## ?????????????????????? | | ??????????????????## ?????????????????????? | | ???????????????????# ## ????????????????????? | | ???????????????????# #?## ????????????????????? | | ???????????????????####????# ????????????????????? | | ????????????????????????????#????????????????????? | | ?????????????????????????????????????????????????? | | ?????????????????????????????????????????????????? | +----------------------------------------------------+ Best States ------------- Heat Dissipation 47 Energy Generation 18 Energy Capacity 310 Matter Stores 300 Matter Capacity 300 Sight Range 16 Terrain Scan Range 16 Terrain Scan Density 10 Armor Coverage 150 Evasion (%) 40 Recoil Reduction 2 Item Schematics ----------------- None Robot Schematics ------------------ None Fabricated ------------ Nothing Repaired ---------- Nothing Studied --------- None Alien Tech Used ----------------- None Achievements -------------- None Challenges ------------ None Game ------ Seed ScatterHelicalScreen Manual? 0 Play Time 00:16:08 Cumulative 315.8 hours Start 2025.10.23 @ 08:59:12 End 2025.10.23 @ 09:14:35 Sessions 1 Manual Loads 0 Difficulty Rogue Special Mode None Game No. 164 Rogue 156 Adventurer 8 Explorer 0 Win Type - Total 20 Types 12/0/3/2/0/0/1/0/1/1 Lore% 88 Gallery% 86 Achievement% 54 Wizard Run 0 Options --------- Layout 2 ASCII 0 Keyboard 1 Movement Numpad Keybinds 1 Fullscreen 1 Font 24/Smallcaps Map View 50x44 Zoom Use 0% Tactical HUD 1 Map Filters SATURATION(78)|BRIGHTNESS(125) Filters SHIFT_HUE(220) Steam 1 RUN: b4ee9b83-8c72-490f-9117-31fc55215c3a